bitfinex/quotes_ETHUSD_20250326
["timestamp","ask_amount","ask_price","bid_price","bid_amount"]
[1742974090602,10.04,2070.5,2070.3,14.95302205]
[1742974090943,11.16897198,2070.5,2070.3,14.95302205]
[1742974091119,11.16897198,2070.5,2070.3,14.5]
[1742974092853,0.28201643,2070.4,2070.3,14.5]
[1742974093057,0.28201643,2070.4,2070.3,17.442698]
[1742974093424,0.28201643,2070.4,2070.3,22.272908]
[1742974093938,0.28266783,2070.4,2070.3,27.102918]
[1742974094140,1.12897198,2070.7,2070.3,22.272708]
[1742974094323,0.28328885,2070.6,2070.3,22.272708]
[1742974094655,0.28328885,2070.6,2070.4,3.2368978]
[1742974094953,1.41226083,2070.6,2070.4,3.2368978]
[1742974095551,1.41226083,2070.6,2070.3,14.95216647]
[1742974095764,1.41226083,2070.6,2070.3,14.5]
[1742974096261,1.41226083,2070.6,2070.2,14.92666]
[1742974096820,1.41226083,2070.6,2070.3,4.83016]
[1742974097056,0.28328885,2070.6,2070.2,29.42662]
[1742974097260,5.11280885,2070.6,2070.3,3.0919408]
[1742974097884,0.28328885,2070.6,2070.3,3.0919408]
[1742974099187,0.28328885,2070.6,2070.3,7.9221108]
[1742974099691,0.28328885,2070.6,2070.3,3.0919408]
[1742974100489,0.28328885,2070.6,2070.3,7.9221308]
[1742974100663,0.28328885,2070.6,2070.4,1.80184608]
[1742974100966,0.28328885,2070.6,2070.2,10.09624]
[1742974102178,0.28328885,2070.6,2070.2,14.9265]
[1742974102391,0.28328885,2070.6,2070.2,10.09616]
[1742974102889,0.28328885,2070.6,2070.2,14.92651]
[1742974104593,0.28328885,2070.6,2070.3,4.83018]
[1742974104797,0.28328885,2070.6,2070.3,6.4720928]
[1742974106404,0.28328885,2070.6,2070.4,4.82996]
[1742974106587,0.28328885,2070.6,2070.4,5.62323]
[1742974106793,15.99804198,2070.8,2070.4,5.62323]
[1742974106976,0.25578143,2070.7,2070.4,5.62323]
[1742974107180,5.95804198,2070.8,2070.4,7.39706248]
[1742974107394,0.25578143,2070.7,2070.4,7.39706248]
[1742974107708,5.95804198,2070.8,2070.4,7.39706248]
[1742974107908,0.25553017,2070.6,2070.4,7.39706248]
[1742974108066,5.95804198,2070.8,2070.4,7.39706248]
[1742974108269,0.25527889,2070.5,2070.4,5.62323]
[1742974108481,5.95804198,2070.8,2070.4,5.62323]
[1742974108683,0.25527889,2070.5,2070.4,5.62323]
[1742974109169,1.12897198,2070.8,2070.4,5.62323]
[1742974109472,0.25578143,2070.7,2070.4,5.62323]
[1742974109667,0.25578143,2070.7,2070.4,7.2328712]
[1742974109870,5.95810198,2070.8,2070.4,7.2328712]
[1742974110096,0.25553017,2070.6,2070.4,7.2328712]
[1742974110295,5.95810198,2070.8,2070.4,7.2328712]
[1742974110504,0.25527889,2070.5,2070.4,7.2328712]
[1742974110707,5.95810198,2070.8,2070.4,7.2328712]
[1742974111008,5.95810198,2070.8,2070.4,7.68460765]
[1742974111312,0.25578143,2070.7,2070.4,7.68460765]
[1742974111608,0.25578143,2070.7,2070.4,1.24513645]
[1742974112115,0.25578143,2070.7,2070.4,0.7934]
[1742974112323,10.78732198,2070.8,2070.4,0.7934]
[1742974112495,0.25603854,2070.6,2070.4,0.7934]
[1742974112695,5.95829198,2070.7,2070.4,0.7934]
[1742974112900,0.25578726,2070.5,2070.4,0.7934]
[1742974113098,5.95829198,2070.7,2070.4,2.4030962]
[1742974113299,0.25626742,2070.5,2070.4,0.7934]
[1742974113502,5.95829198,2070.7,2070.4,0.7934]
[1742974113824,5.95849198,2070.6,2070.2,10.13782]
[1742974114026,1.38549068,2070.6,2070.2,10.13782]
[1742974114230,0.2565187,2070.6,2070.2,10.13782]
[1742974114418,0.2565187,2070.6,2070.2,11.7839478]
[1742974114584,0.2565187,2070.6,2070.3,0.45205802]
[1742974115521,0.2565187,2070.6,2070.2,16.6141078]
[1742974115840,0.2565187,2070.6,2070.3,4.8302]
[1742974116382,0.2565187,2070.6,2070.4,5.62337]
[1742974116619,16.86159198,2070.9,2070.4,7.39763698]
[1742974116829,0.25633749,2070.5,2070.4,5.62337]
[1742974117161,4.82908,2070.8,2070.4,5.62335]
[1742974117458,16.86163198,2070.9,2070.5,4.82967]
[1742974117660,0.25684,2070.7,2070.4,6.75232198]
[1742974117954,15.73266,2070.9,2070.5,4.8297]
[1742974118115,0.25658876,2070.6,2070.5,4.8297]
[1742974118315,15.73266,2070.9,2070.5,4.8297]
[1742974118618,0.25658876,2070.6,2070.5,4.8297]
[1742974119448,10.09,2070.9,2070.5,5.95867198]
[1742974119665,0.25611577,2070.6,2070.5,6.41142874]
[1742974119822,10.09,2070.9,2070.5,7.74402411]
[1742974120022,0.25611577,2070.6,2070.5,6.61505213]
[1742974120252,10.09,2070.9,2070.5,6.61505213]
[1742974120463,0.25611577,2070.6,2070.5,6.61505213]
[1742974120763,10.09,2070.9,2070.5,6.61505213]
[1742974121259,0.25661827,2070.8,2070.5,7.74402411]
[1742974121759,0.25661827,2070.8,2070.5,6.61505213]
[1742974122059,0.25661827,2070.8,2070.6,7.11892491]
[1742974122364,0.25661827,2070.8,2070.6,8.24789689]
[1742974122661,0.25661827,2070.8,2070.6,8.74894315]
[1742974123558,0.25661827,2070.8,2070.6,8.74894308]
[1742974123766,0.25661827,2070.8,2070.7,0.45275676]
[1742974124131,0.25661827,2070.8,2070.7,4.96375676]
[1742974128778,0.25661827,2070.8,2070.7,5.93593935]
[1742974128981,0.25661827,2070.8,2070.7,7.83725697]
[1742974131353,0.25661827,2070.8,2070.7,5.93593935]
[1742974134796,0.25661827,2070.8,2070.7,10.76521935]
[1742974135098,0.25661827,2070.8,2070.7,5.93593935]
[1742974140903,0.25661827,2070.8,2070.7,10.76521935]
[1742974141800,0.25661827,2070.8,2070.7,11.89419133]
[1742974142096,0.25661827,2070.8,2070.7,14.40661446]
[1742974146534,0.25661827,2070.8,2070.7,13.27764248]
[1742974147033,0.25661827,2070.8,2070.7,12.51994248]
[1742974147226,0.25661827,2070.8,2070.7,3.17966248]
[1742974147420,0.25661827,2070.8,2070.7,5.93493935]
[1742974148030,0.25661827,2070.8,2070.7,12.65089133]
[1742974148206,0.05,2070.9,2070.8,7.82905]
[1742974148528,0.05,2070.9,2070.8,9.71572198]
[1742974149243,0.05,2070.9,2070.8,10.16847874]
[1742974149442,0.05,2070.9,2070.8,12.77024788]
[1742974150501,0.05,2070.9,2070.8,13.32024788]
[1742974150733,0.05,2070.9,2070.8,13.67846299]
[1742974150899,0.05,2070.9,2070.8,41.52546299]
[1742974151099,1.12897198,2071.7,2071.4,4.82751]
[1742974151301,1.96127198,2071.8,2071.5,4.82736]
[1742974151532,0.23698288,2071.6,2071.5,4.82736]
[1742974151727,1.96127198,2071.8,2071.5,4.82736]
[1742974151934,0.23698288,2071.6,2071.5,4.82736]
[1742974152138,0.8323,2071.8,2071.6,4.82715]
[1742974152433,0.8323,2071.8,2071.5,5.28011676]
[1742974153129,0.8323,2071.8,2071.5,10.10738676]
[1742974153442,0.8323,2071.8,2071.5,5.28000676]
[1742974153635,0.8323,2071.8,2071.6,4.82707]
[1742974154130,0.8323,2071.8,2071.7,4.82695]
[1742974154453,1.90627198,2072.0,2071.6,4.82706]
[1742974154657,1.12897198,2071.9,2071.6,4.82704]
[1742974155138,0.21898411,2071.8,2071.7,4.82695]
[1742974155540,0.21898411,2071.8,2071.7,19.32695]
[1742974156105,1.90627198,2072.0,2071.7,19.32695]
[1742974156319,0.21978241,2071.8,2071.7,21.90034156]
[1742974156510,10.04,2072.1,2071.8,4.82652]
[1742974157042,1.12897198,2072.0,2071.7,4.82685]
[1742974157249,10.04,2072.1,2071.8,19.32669]
[1742974157451,11.16897198,2072.1,2071.8,19.32669]
[1742974158158,11.16897198,2072.1,2071.7,4.82685]
[1742974158159,1.12897198,2072.0,2071.7,4.82685]
[1742974158445,0.7773,2071.9,2071.7,4.82685]
[1742974158649,1.90627198,2071.9,2071.7,14.5]
[1742974158856,1.90627198,2071.9,2071.6,0.45022361]
[1742974159045,1.12897198,2071.7,2071.6,0.45022361]
[1742974159350,1.12897198,2071.8,2071.6,0.45022361]
[1742974159531,0.7773,2071.9,2071.6,0.45022361]
[1742974159732,0.7773,2071.9,2071.6,4.82717]
[1742974159940,1.90627198,2071.9,2071.5,24.15471]
[1742974160449,1.90627198,2071.9,2071.6,4.82713]
[1742974161453,0.7773,2071.9,2071.6,4.82713]
[1742974161758,0.7773,2071.9,2071.7,4.82687]
[1742974161958,10.04,2072.0,2071.8,4.82672]
[1742974163247,10.04,2072.0,2071.9,4.82648]
[1742974163437,15.64289,2072.3,2071.9,14.5]
[1742974163638,13.36533199,2072.3,2071.9,14.5]
[1742974164452,18.19089199,2072.3,2071.9,14.5]
[1742974165583,13.36533199,2072.3,2071.9,14.5]
[1742974165779,10.8173,2072.3,2071.9,19.32643]
[1742974165944,10.8173,2072.3,2072.0,4.8261]
[1742974166145,10.8173,2072.3,2071.9,4.82644]
[1742974166587,10.8173,2072.3,2072.0,14.5]
[1742974166881,12.82929986,2072.3,2072.0,14.5]
[1742974167065,14.59476285,2072.3,2072.0,14.5]
[1742974167255,19.42033285,2072.3,2071.8,9.78451811]
[1742974167859,19.42033285,2072.3,2071.9,14.5]
[1742974170686,10.04,2072.2,2071.9,14.5]
[1742974172392,10.04,2072.2,2071.9,19.32648]
[1742974172574,5.7636632,2072.9,2072.4,4.82525]
[1742974172776,0.9393332,2072.9,2072.5,4.63724434]
[1742974172966,7.77559306,2072.9,2072.5,4.589]
[1742974173160,2.01199986,2072.7,2072.6,14.5]
[1742974173360,0.9393332,2072.9,2072.6,14.5]
[1742974173705,2.01199986,2072.7,2072.6,14.5]
[1742974174153,0.9393332,2072.9,2072.6,14.5]
[1742974174346,2.01199986,2072.8,2072.6,14.5]
[1742974174560,2.01199986,2072.8,2072.3,9.78143942]
[1742974174791,2.01199986,2072.8,2072.3,14.60687942]
[1742974174981,2.01199986,2072.8,2072.4,14.5]
[1742974175317,3.27195517,2072.8,2072.4,14.5]
[1742974175808,2.01199986,2072.8,2072.4,19.32527]
[1742974175955,2.01199986,2072.8,2072.4,14.5]
[1742974176149,2.01199986,2072.8,2072.5,4.82508]
[1742974176357,2.01199986,2072.8,2072.4,14.5]
[1742974176358,0.9393332,2072.9,2072.4,19.3253]
[1742974176558,2.95133306,2072.9,2072.4,19.3253]
[1742974177381,10.03940737,2072.9,2072.4,14.5]
[1742974177590,2.01199986,2072.7,2072.3,4.8254]
[1742974177790,0.7687,2072.6,2072.3,4.8254]
[1742974178101,0.7687,2072.6,2072.3,19.3254]
[1742974178399,0.7687,2072.6,2072.2,4.82576]
[1742974178599,0.7687,2072.6,2072.2,9.42276]
[1742974178773,0.7687,2072.6,2072.3,4.82555]
[1742974179496,0.7687,2072.6,2072.2,19.54790183]
[1742974179686,0.7687,2072.6,2072.2,24.37355183]
[1742974179895,0.8115,2072.4,2071.9,5.59566]
[1742974180098,0.8115,2072.4,2071.9,4.82636]
[1742974180406,0.8115,2072.4,2072.0,19.32623]
[1742974180808,0.8115,2072.4,2072.0,19.32614]
[1742974180975,10.04,2072.5,2072.2,4.82563]
[1742974181169,10.8515,2072.5,2072.1,11.584474]
[1742974181374,10.8515,2072.5,2072.2,4.82576]
[1742974181612,10.8515,2072.5,2072.1,5.27687331]
[1742974181911,10.8515,2072.5,2072.1,10.10278331]
[1742974182613,10.8515,2072.5,2072.2,4.82575]
[1742974183520,10.8515,2072.5,2072.2,5.27685364]
[1742974183707,10.8515,2072.5,2072.3,4.82554]
[1742974183915,10.8515,2072.5,2072.2,5.27676364]
[1742974183916,10.04,2072.5,2072.2,5.27676364]
[1742974184109,10.04,2072.5,2072.3,5.59475]
[1742974184610,10.04,2072.5,2072.4,4.82532]
[1742974184814,0.8115,2072.7,2072.4,4.82532]
[1742974185487,0.8115,2072.7,2072.3,25.37127364]
[1742974185696,10.04,2072.8,2072.4,4.82517]
[1742974185892,10.04,2072.8,2072.4,9.65037]
[1742974186092,10.04,2072.8,2072.4,4.82517]
[1742974186293,0.8115,2072.7,2072.5,14.5]
[1742974187625,0.8115,2072.7,2072.5,19.32507]
[1742974188126,0.8115,2072.7,2072.5,14.5]
[1742974189129,0.8115,2072.7,2072.5,19.32506]
[1742974189613,0.8115,2072.7,2072.5,14.5]
[1742974190122,0.8115,2072.7,2072.3,9.42752]
[1742974190329,0.8115,2072.7,2072.3,14.2529]
[1742974190528,0.8115,2072.7,2072.3,28.7529]
[1742974190726,0.8115,2072.7,2072.4,0.45134125]
[1742974191523,3.37976931,2072.7,2072.4,0.45134125]
[1742974191826,3.37976931,2072.7,2072.3,23.92738]
[1742974192012,0.8115,2072.7,2072.3,23.92738]
[1742974192331,0.8115,2072.7,2072.3,28.75283]
[1742974192540,0.8115,2072.7,2072.3,23.92738]
[1742974192742,0.8115,2072.7,2072.3,28.75283]
[1742974193044,0.8115,2072.7,2072.3,23.92738]
[1742974193246,0.8115,2072.7,2072.3,28.75283]
[1742974193430,0.8115,2072.7,2072.3,23.92738]
[1742974193900,0.8115,2072.7,2072.4,0.45160536]
[1742974194634,0.8115,2072.7,2072.4,5.27687536]
[1742974195004,0.8115,2072.7,2072.4,7.74569354]
[1742974195224,0.8115,2072.7,2072.4,4.82527]
[1742974195437,0.8115,2072.7,2072.3,9.42753]
[1742974196026,0.8115,2072.7,2072.4,14.5]
[1742974197548,2.77339986,2072.5,2072.1,11.34757474]
[1742974198033,7.59848986,2072.5,2072.2,14.5]
[1742974198570,7.59848986,2072.5,2072.1,6.52155474]
[1742974198571,13.66601985,2072.5,2072.1,6.52155474]
[1742974198714,8.84082985,2072.5,2072.1,6.52155474]
[1742974199952,18.88082985,2072.5,2072.2,0.45208149]
[1742974200755,10.04,2072.5,2072.4,4.82532]
[1742974200915,10.04,2072.5,2072.3,5.27745149]
[1742974201839,10.04,2072.5,2072.4,0.45208149]
[1742974202242,10.8014,2072.5,2072.4,0.45208149]
[1742974202967,10.8014,2072.5,2072.2,4.82575]
[1742974203345,10.8014,2072.5,2072.1,11.34754474]
[1742974203746,6.83740986,2072.4,2072.1,6.52155474]
[1742974204060,0.7614,2072.3,2072.1,6.52155474]
[1742974205275,0.7614,2072.3,2072.1,11.34745474]
[1742974205571,10.8014,2072.5,2072.1,11.34745474]
[1742974207071,15.6265,2072.5,2072.1,11.34745474]
[1742974207267,15.6265,2072.5,2072.1,6.52155474]
[1742974207477,17.87283799,2072.5,2072.1,6.52155474]
[1742974207847,17.87283799,2072.5,2072.1,11.34750474]
[1742974208179,17.87283799,2072.5,2072.1,6.52155474]
[1742974208477,17.87283799,2072.5,2072.1,11.34747474]
[1742974209672,13.04773799,2072.5,2072.1,6.52155474]
[1742974209881,10.8014,2072.5,2072.1,11.34744474]
[1742974211179,15.6265,2072.5,2072.1,11.34744474]
[1742974211682,6.83777986,2072.2,2072.1,6.52155474]
[1742974212176,5.62614,2072.3,2072.1,6.52155474]
[1742974212344,0.8004,2072.3,2072.1,6.52155474]
[1742974214745,10.04,2072.4,2072.1,6.52155474]
[1742974215358,0.8004,2072.3,2072.1,6.52155474]
[1742974215775,5.62604,2072.3,2072.1,6.52155474]
[1742974216273,4.82578,2072.2,2072.1,6.52155474]
[1742974217146,5.0155418,2072.2,2072.1,6.52155474]
[1742974217378,10.2297618,2072.2,2072.1,6.52155474]
[1742974218415,10.2297618,2072.2,2072.1,7.24966021]
[1742974218620,10.2297618,2072.2,2072.1,10.02116007]
[1742974220630,10.2297618,2072.2,2072.1,14.84718007]
[1742974221484,10.04,2072.2,2072.1,14.84718007]
[1742974222549,10.2106332,2072.9,2072.2,3.0]
[1742974222751,10.2106332,2072.9,2072.3,8.93306587]
[1742974223103,0.19072584,2072.8,2072.3,8.93306587]
[1742974223341,0.19072584,2072.8,2072.3,8.10016587]
[1742974223609,0.19072584,2072.8,2072.6,4.82471]
[1742974223922,0.19072584,2072.8,2072.7,4.82462]
[1742974224334,0.19072584,2072.8,2072.7,6.07404299]
[1742974225461,0.7599,2073.6,2073.1,0.7969]
[1742974225607,15.62244,2073.6,2073.1,4.82358]
[1742974225804,15.62244,2073.6,2073.2,4.82343]
[1742974226041,4.82279,2073.5,2073.1,4.82352]
[1742974226402,15.62244,2073.6,2073.1,9.64709]
[1742974226606,10.7999,2073.6,2073.3,4.82322]
[1742974227265,10.7999,2073.6,2073.2,4.82341]
[1742974227405,10.7999,2073.6,2073.2,4.82333]
[1742974227755,20.44518,2073.6,2073.1,4.82357]
[1742974227957,20.4451,2073.6,2073.1,4.82357]
[1742974228246,4.82276,2073.5,2073.1,4.82357]
[1742974228420,10.7999,2073.6,2072.9,0.7969]
[1742974228619,10.7999,2073.6,2072.9,1.94887752]
[1742974229949,10.7999,2073.6,2073.0,2.01199986]
[1742974230454,10.04,2073.6,2073.0,6.83584986]
[1742974230748,10.04,2073.6,2073.3,4.82322]
[1742974230911,10.04,2073.6,2073.3,10.23712]
[1742974231439,10.04,2073.6,2073.3,9.44022]
[1742974232244,10.04,2073.6,2073.3,4.617]
[1742974232546,10.04,2073.6,2073.3,9.44022]
[1742974232719,10.04,2073.6,2073.3,4.617]
[1742974233733,10.04,2073.6,2073.3,9.44022]
[1742974234151,10.04,2073.6,2073.3,4.617]
[1742974235036,2.77189986,2073.8,2073.3,4.617]
[1742974235243,0.7599,2073.5,2073.3,4.617]
[1742974235539,5.5827,2073.5,2073.3,4.617]
[1742974236056,0.7599,2073.5,2073.3,4.617]
[1742974236855,0.7599,2073.5,2073.2,4.82345]
[1742974237214,0.7599,2073.5,2073.1,4.82358]
[1742974237412,0.7599,2073.5,2073.0,4.97816053]
[1742974238356,0.7599,2073.5,2073.0,4.605]
[1742974239255,0.7599,2073.5,2073.1,0.04823198]
[1742974239458,0.7599,2073.6,2073.2,4.82346]
[1742974240337,5.58244,2073.6,2073.2,4.82346]
[1742974240537,0.7599,2073.6,2073.2,9.64662]
[1742974240732,0.7599,2073.6,2073.2,4.82326]
[1742974241348,0.7599,2073.6,2073.3,4.82322]
[1742974243265,5.58253,2073.6,2073.1,9.42266]
[1742974243976,5.60265,2073.3,2072.9,4.82414]
[1742974244178,7.61464986,2073.3,2072.8,4.82435]
[1742974244748,4.8235,2073.2,2072.8,4.82435]
[1742974244953,4.87179612,2073.2,2072.7,9.42857]
[1742974245134,0.7794,2073.1,2072.7,9.42857]
[1742974245336,2.79139986,2073.1,2072.6,4.82485]
[1742974245676,10.04,2073.0,2072.4,27.828]
[1742974245832,10.04,2073.0,2072.6,0.7938]
[1742974246040,10.04,2073.0,2072.9,4.82415]
[1742974246559,10.04,2073.0,2072.8,9.64863]
[1742974246731,10.04,2073.0,2072.9,4.82415]
[1742974247588,10.04,2073.0,2072.8,6.06979299]
[1742974247754,0.7794,2073.3,2072.9,4.82414]
[1742974248889,5.60269,2073.3,2072.8,6.06977299]
[1742974249085,5.60269,2073.3,2072.8,6.06967299]
[1742974249390,5.60269,2073.3,2072.8,9.64842]
[1742974249681,5.60269,2073.3,2072.8,4.82419]
[1742974250092,4.82348,2073.2,2072.8,4.82419]
[1742974250390,9.64714,2073.2,2072.7,4.82457]
[1742974250684,4.82348,2073.2,2072.8,4.82434]
[1742974251201,4.82369,2073.1,2072.7,4.82457]
[1742974252288,7.61467986,2073.3,2072.7,4.82453]
[1742974252499,5.60268,2073.3,2072.8,4.82421]
[1742974252704,4.82347,2073.2,2072.8,4.82421]
[1742974253403,15.64268,2073.3,2072.8,4.82421]
[1742974253708,18.22988687,2073.3,2072.8,4.82421]
[1742974253881,13.40660687,2073.3,2072.8,4.82421]
[1742974254211,4.82361,2073.2,2072.8,4.82434]
[1742974254793,4.82361,2073.2,2072.7,4.82457]
[1742974255230,4.82371,2073.1,2072.7,4.82457]
[1742974255396,4.82371,2073.1,2072.6,0.7938]
[1742974255397,0.7788,2073.0,2072.6,4.8248]
[1742974255728,5.60276,2073.0,2072.6,4.8248]
[1742974255929,6.645407,2073.0,2072.5,9.43889]
[1742974256230,4.8243,2072.9,2072.5,4.614]
[1742974256439,4.8243,2072.9,2072.5,4.82507]
[1742974257092,4.82427,2072.9,2072.4,9.43828]
[1742974257397,4.82427,2072.9,2072.4,12.18889509]
[1742974258258,5.60336,2072.8,2072.3,6.35148601]
[1742974258428,4.82463,2072.7,2072.3,1.52616601]
[1742974258915,0.7788,2072.8,2072.4,4.8252]
[1742974259122,0.7788,2072.8,2072.5,4.82506]
[1742974259317,0.7788,2072.8,2072.5,5.9427026]
[1742974260504,5.60272,2073.0,2072.6,4.82483]
[1742974261039,0.7788,2073.0,2072.7,4.82459]
[1742974261449,10.8188,2073.0,2072.8,4.82434]
[1742974261759,10.8188,2073.0,2072.8,1.047773]
[1742974261924,10.8188,2073.0,2072.6,10.47821]
[1742974262123,10.8188,2073.0,2072.7,4.82458]
[1742974263664,10.8188,2073.0,2072.7,4.82445]
[1742974263837,10.04,2073.0,2072.9,4.82415]
[1742974264033,10.04,2073.0,2072.9,6.4559199]
[1742974267267,22.877468,2073.4,2072.9,6.4559199]
[1742974267468,4.82323,2073.3,2072.9,6.4559199]
[1742974267873,22.877388,2073.4,2072.9,11.2798899]
[1742974268044,22.877388,2073.4,2073.0,4.82391]
[1742974268879,27.700608,2073.4,2072.9,6.4557399]
[1742974269196,4.82328,2073.3,2072.8,4.82436]
[1742974269346,4.82355,2073.2,2072.7,9.794155]
[1742974269681,5.60257,2073.1,2072.7,9.43346]
[1742974269860,0.7788,2073.1,2072.7,9.43346]
[1742974270269,4.82403,2073.0,2072.6,4.82485]
[1742974270462,5.60249,2073.1,2072.7,4.82451]
[1742974270946,5.60249,2073.1,2072.6,10.73927986]
[1742974271146,5.60249,2073.1,2072.7,4.8246]
[1742974272088,5.60249,2073.1,2072.7,4.82459]
[1742974272761,5.60249,2073.1,2072.6,10.73929986]
[1742974272762,10.42638,2073.1,2072.6,10.73929986]
[1742974273084,5.60249,2073.1,2072.7,6.49273225]
[1742974273288,15.64249,2073.1,2072.7,6.49273225]
[1742974273920,10.8188,2073.1,2072.7,11.31719225]
[1742974274124,10.8188,2073.1,2072.8,4.82437]
[1742974274419,10.04,2073.1,2072.8,9.64863]
[1742974274720,10.04,2073.1,2072.9,1.40865321]
[1742974275708,10.04,2073.1,2073.0,14.5]
[1742974278004,4.235578,2073.4,2073.2,4.82332]
[1742974278705,4.235578,2073.4,2073.3,14.5]
[1742974281205,4.235578,2073.4,2073.1,4.616]
[1742974281587,4.235578,2073.4,2073.1,9.43957]
[1742974281922,4.235578,2073.4,2073.1,25.50676132]
[1742974282423,4.235578,2073.4,2073.2,4.82332]
[1742974283004,4.235578,2073.4,2073.3,14.5]
[1742974284129,4.235578,2073.4,2073.1,11.76453132]
[1742974284330,4.235578,2073.4,2073.2,4.82344]
[1742974284538,4.235578,2073.4,2073.2,20.98223713]
[1742974285632,0.1635461,2073.3,2073.2,20.98223713]
[1742974286736,0.1635461,2073.3,2073.2,16.15879713]
[1742974287138,0.1635461,2073.3,2073.2,20.98225713]
[1742974287739,0.1635461,2073.3,2073.2,23.98225713]
[1742974287897,0.1635461,2073.3,2073.2,24.74875713]
[1742974288244,4.235578,2073.4,2073.3,8.58972]
[1742974288534,4.235578,2073.4,2073.3,12.84879483]
[1742974288694,4.40155254,2073.4,2073.3,12.84879483]
[1742974288896,4.40155254,2073.4,2073.3,29.36079469]
[1742974289746,4.82334,2073.3,2072.8,5.59075]
[1742974289935,4.82334,2073.3,2072.6,5.5912]
[1742974289936,0.7789,2073.1,2072.6,5.5912]
[1742974290145,0.7789,2073.1,2072.6,24.91596]
[1742974290146,5.60264,2073.1,2072.6,24.91596]
[1742974290339,0.16610277,2073.0,2072.7,4.82462]
[1742974291007,0.16610277,2073.0,2072.8,4.82437]
[1742974291235,0.16610277,2073.0,2072.6,20.09131]
[1742974291442,0.16610277,2073.0,2072.6,23.045333]
[1742974291603,0.16610277,2073.0,2072.6,27.103593]
[1742974291803,0.16610277,2073.0,2072.7,4.82459]
[1742974293043,0.16610277,2073.0,2072.6,22.278833]
[1742974293242,0.16610277,2073.0,2072.7,4.8246]
[1742974293543,0.16610277,2073.0,2072.6,22.278833]
[1742974293846,0.16610277,2073.0,2072.6,26.896833]
[1742974294047,0.16610277,2073.0,2072.6,26.896753]
[1742974294346,0.16610277,2073.0,2072.7,4.82462]
[1742974294517,0.16610277,2073.0,2072.7,9.64915]
[1742974294719,0.16610277,2073.0,2072.7,4.82453]
[1742974295842,0.16610277,2073.0,2072.7,4.8245]
[1742974296229,0.16610277,2073.0,2072.6,23.9428]
[1742974296426,2.17810263,2073.0,2072.6,28.76747]
[1742974296740,2.17810263,2073.0,2072.7,4.82459]
[1742974296938,2.17810263,2073.0,2072.6,28.76742]
[1742974297139,0.16610277,2073.0,2072.7,4.82453]
[1742974297343,0.16610277,2073.0,2072.9,4.82415]
[1742974297671,0.16610277,2073.0,2072.9,5.59065]
[1742974297954,0.16610277,2073.0,2072.9,7.60264986]
[1742974298337,4.235578,2073.4,2073.3,5.58972]
[1742974298539,4.235578,2073.4,2073.3,11.250031]
[1742974298951,4.235578,2073.4,2073.3,25.750031]
[1742974299257,4.235578,2073.4,2073.3,23.94222]
[1742974299567,4.235578,2073.4,2073.3,24.70872]
[1742974300067,8e-06,2073.4,2073.3,29.72071986]
[1742974300232,0.7529,2074.6,2074.1,4.82126]
[1742974300562,2.01199986,2074.4,2074.1,4.638]
[1742974300729,10.7929,2074.6,2074.2,4.82095]
[1742974300933,10.7929,2074.6,2074.3,14.5]
[1742974301133,10.04,2074.6,2074.3,14.5]
[1742974301337,0.13795504,2074.5,2074.3,16.895895]
[1742974301654,0.13795504,2074.5,2074.3,21.716795]
[1742974302022,12.85489986,2074.9,2074.4,4.82067]
[1742974302331,10.17991223,2074.8,2074.5,4.8204]
[1742974302670,10.17991223,2074.8,2074.5,2.1716295]
[1742974302866,2.01199986,2074.7,2074.3,14.5]
[1742974303066,6.83197986,2074.7,2074.3,14.5]
[1742974303245,0.13906469,2074.6,2074.3,14.5]
[1742974303562,0.13906469,2074.6,2074.3,19.32076]
[1742974303861,0.13869675,2074.5,2074.3,16.432076]
[1742974304077,0.13869675,2074.5,2074.3,14.5]
[1742974304250,2.76489986,2074.4,2074.0,4.682]
[1742974304576,2.76489986,2074.4,2073.7,5.60947]
[1742974304577,2.01199986,2074.2,2073.7,5.60947]
[1742974304777,2.01199986,2074.2,2073.3,10.08968221]
[1742974304778,2.01199986,2074.0,2073.5,5.60987]
[1742974304940,0.13704453,2073.9,2073.5,10.29987]
[1742974305142,0.13704453,2073.9,2073.5,10.43252]
[1742974305383,0.13704453,2073.9,2073.5,25.88045182]
[1742974305689,2.01199986,2073.8,2073.5,4.691]
[1742974306047,0.13629647,2073.7,2073.3,20.11033]
[1742974306377,2.01199986,2073.6,2073.3,14.5]
[1742974306586,0.13414897,2073.5,2073.3,14.5]
[1742974307140,0.88704897,2073.5,2073.3,14.5]
[1742974309285,0.13414897,2073.5,2073.3,19.32307]
[1742974309474,0.13414897,2073.5,2073.3,14.5]
[1742974309676,0.13414897,2073.5,2073.3,19.3232]
[1742974309871,0.13414897,2073.5,2073.3,14.5]
[1742974310069,0.13414897,2073.5,2073.3,19.3231]
[1742974310271,0.13414897,2073.5,2073.3,14.5]
[1742974311362,0.13414897,2073.5,2073.3,19.32305]
[1742974311560,0.13414897,2073.5,2073.4,4.82299]
[1742974311778,12.05199986,2073.8,2073.3,7.706859]
[1742974311988,12.05199986,2073.8,2073.2,4.683]
[1742974311989,0.13405928,2073.7,2073.2,6.69499986]
[1742974312282,0.13405928,2073.7,2073.6,4.82253]
[1742974312641,10.04,2073.8,2073.7,7.82229]
[1742974312846,10.04,2073.8,2073.7,12.51729]
[1742974313045,10.15100542,2073.8,2073.7,12.51729]
[1742974313240,10.04,2073.8,2073.7,12.51729]
[1742974313546,10.15106437,2073.8,2073.7,15.01347299]
[1742974315048,10.15106437,2073.8,2073.7,12.01347299]
[1742974316143,10.15106437,2073.8,2073.7,26.51347299]
[1742974316383,10.15106437,2073.8,2073.7,21.81847299]
[1742974316583,0.11106437,2073.8,2073.7,21.81847299]
[1742974316781,7.58567986,2074.4,2073.8,4.82194]
[1742974316959,5.98764862,2074.3,2073.8,4.82194]
[1742974317158,2.01199986,2074.2,2073.8,4.82194]
[1742974317359,0.10769864,2074.1,2073.9,14.5]
[1742974317983,0.10769864,2074.1,2073.9,19.32172]
[1742974318385,0.10769864,2074.1,2074.0,4.8216]